Cogmind - Beta 13 @@@ ROGUE MODE // 2024.03.20 @ 04:14:38 Player: KADW Result: Destroyed by S-27 Virus with Autogun Performance ------------- Evolutions (5) 2500 Regions Visited (9) 1800 Robots Destroyed (2) 10 Value Destroyed (54) 54 Prototype IDs (0) 0 Alien Tech Used (0) 0 Bonus (1987) 1987 TOTAL SCORE: 6351 Bonus ------- Pacifist 1987 Cogmind --------- Core Integrity 0/1000 Matter 99/300 Energy 100/100 System Corruption 13% Temperature Cool (0) Movement Core (50) Location -5/Upper Caves Parts ------- > --- POWER (1) -------- (None) > --- PROPULSION (11) -- (None) > --- UTILITY (3) ------ Hacking Suite > --- WEAPON (2) ------- Flail > --- INVENTORY (5) ---- Faulty Improved Flight Unit Advanced Power Amplifier Peak State ------------ > --- POWER ------------ (None) > --- PROPULSION ------- Light Treads Light Treads Titanium Leg Titanium Leg VSS Leg VSS Leg Flexi-carbon Leg Gravmag System > --- UTILITY ---------- Improved Sensor Array Reaction Control System Hacking Suite > --- WEAPON ----------- (None) > --- INVENTORY -------- Improved Flight Unit Advanced Power Amplifier Mining Claw [Rating: 33] Favorites ----------- Power None Propulsion Light Treads Treads Light Treads Leg VSS Leg Hover Unit Gravmag System Utility Hacking Suite Device Improved Sensor Array Hackware Hacking Suite Weapon Assault Rifle Ballistic Gun Assault Rifle Impact Weapon Flail Slashing Weapon Mining Claw Build | -11 -10 -9 -8 -7 -6 -5 -5 -5 -5 ------- Run | Yrd Mat Mat Mat Fac Fac Fac Was Fac Upp Slots Evolved 10 | . . 2 2 2 2 2 . . . Power . | . . . . . . . . . . Propulsion 9 | . . 2 2 2 2 1 . . . Utility 1 | . . . . . . 1 . . . Weapon . | . . . . . . . . . . Parts Attached 22 | 3 . 4 . 5 4 1 . 2 3 Power . | . . . . . . . . . . Engine . | . . . . . . . . . . Core . | . . . . . . . . . . Reactor . | . . . . . . . . . . Propulsion 15 | 2 . 4 . 5 2 . . 2 . Treads 6 | 2 . 2 . 1 . . . 1 . Leg 7 | . . 2 . 4 1 . . . . Wheel . | . . . . . . . . . . Hover 2 | . . . . . 1 . . 1 . Flight . | . . . . . . . . . . Utility 3 | . . . . . 2 1 . . . Device 2 | . . . . . 1 1 . . . Storage . | . . . . . . . . . . Processor . | . . . . . . . . . . Hackware 1 | . . . . . 1 . . . . Protection . | . . . . . . . . . . Artifact . | . . . . . . . . . . Weapon 4 | 1 . . . . . . . . 3 Energy Gun . | . . . . . . . . . . Energy Cannon . | . . . . . . . . . . Ballistic Gun 1 | 1 . . . . . . . . . Ballistic Cannon . | . . . . . . . . . . Launcher . | . . . . . . . . . . Special Weapon . | . . . . . . . . . . Impact Weapon 2 | . . . . . . . . . 2 Slashing Weapon 1 | . . . . . . . . . 1 Piercing Weapon . | . . . . . . . . . . Special Melee Weapon . | . . . . . . . . . . Unidentified Prototypes . | . . . . . . . . . . Parts Lost 16 | . . . 1 3 . . . 11 1 Power . | . . . . . . . . . . Propulsion 12 | . . . . 3 . . . 9 . Utility 2 | . . . . . . . . 2 . Weapon 2 | . . . 1 . . . . . 1 Highest Loss Streak 7 | . . . 1 3 . . . 7 1 To Critical Strikes . | . . . . . . . . . . Average Slot Usage (%) 42 | . 42 53 45 52 59 62 64 44 6 Treads 13 | . 28 37 36 32 13 11 11 7 . Leg 14 | . . 4 . 19 32 29 29 16 . Hover 2 | . . . . . 4 5 5 4 . Device 4 | . . . . . 4 9 11 8 . Hackware 3 | . . . . . 2 5 5 5 5 Ballistic Gun 1 | . 14 11 9 . . . . . . Naked Turns . | . . . . . . . . . . Heaviest Build 4 | 2 2 2 2 . 1 2 2 2 4 Greatest Support 17 | 3 3 3 3 17 3 3 3 3 3 Greatest Overweight (x) 1 | . . . . . . . . . 1 Average Overweight (x) . | . . . . . . . . . . Largest Inventory Capacity 5 | 5 5 5 5 5 5 5 5 5 5 Average Capacity 5 | 5 5 5 5 5 5 5 5 5 5 Most Carried 5 | . . 4 5 4 2 2 3 4 4 Average Carried 2 | . . 3 4 2 2 2 2 3 3 Final Capacity 5 | 5 5 5 5 5 5 5 5 5 5 Final Carried 5 | . . 4 5 2 2 2 3 4 2 Class Distribution -------------------- 100% | Mutant Dominant Class ---------------- Mutant | -10/Materials Mutant | -9/Materials Mutant | -8/Materials Mutant | -7/Factory Mutant | -6/Factory Mutant | -5/Factory Mutant | -5/Waste Mutant | -5/Factory Mutant | -5/Upper Caves Resources | -11 -10 -9 -8 -7 -6 -5 -5 -5 -5 ----------- Run | Yrd Mat Mat Mat Fac Fac Fac Was Fac Upp Matter Collected 136 | 82 . . . . . . . . 54 Remotely . | . . . . . . . . . . Salvage Created 55 | . . . . . . . . . 55 Parts 6 | . . . . . . . . . 6 Haulers Intercepted . | . . . . . . . . . . Recyclers Shooed . | . . . . . . . . . . Parts Field Recycled . | . . . . . . . . . . Retrieved Matter . | . . . . . . . . . . Parts Self-Destructed 6 | . . . . . . . . . 6 Prevented . | . . . . . . . . . . Kills | -11 -10 -9 -8 -7 -6 -5 -5 -5 -5 ------- Run | Yrd Mat Mat Mat Fac Fac Fac Was Fac Upp Combat Hostiles Destroyed 2 | . . . . . . . . . 2 Melee 2 | . . . . . . . . . 2 Classes Destroyed 1 | . . . . . . . . . 1 Swarmer 2 | . . . . . . . . . 2 Best Kill Streak 2 | . . . . . . . . . 2 Combat Bots Only 2 | . . . . . . . . . 2 Max Kills in Single Turn 1 | . . . . . . . . . 1 Gunslinging . | . . . . . . . . . . Exploded . | . . . . . . . . . . Melee 1 | . . . . . . . . . 1 Uniques/NPCs Destroyed . | . . . . . . . . . . Combat | -11 -10 -9 -8 -7 -6 -5 -5 -5 -5 -------- Run | Yrd Mat Mat Mat Fac Fac Fac Was Fac Upp Hostile Shots Fired 402 | . 16 33 6 96 56 . . 78 117 Missed 186 | . 10 11 2 46 33 . . 34 50 Damage Taken 3257 | . 51 248 76 721 272 . . 864 1025 Core 1135 | . . 22 14 76 23 . . 146 854 Absorbed by Shields . | . . . . . . . . . . Core Remaining (%) 96 | 100 100 94 97 89 97 . . . . Volleys Fired . | . . . . . . . . . . Largest . | . . . . . . . . . . Hottest . | . . . . . . . . . . Shots Fired . | . . . . . . . . . . Gun . | . . . . . . . . . . Cannon . | . . . . . . . . . . Launcher . | . . . . . . . . . . Special . | . . . . . . . . . . Kinetic . | . . . . . . . . . . Thermal . | . . . . . . . . . . Explosive . | . . . . . . . . . . Electromagnetic . | . . . . . . . . . . Robot Hit Streak . | . . . . . . . . . . Robot Miss Streak . | . . . . . . . . . . Penetration Max . | . . . . . . . . . . Secondary Targets . | . . . . . . . . . . Shots Hit Robots 4 | . . . . . . . . . 4 Core Hits 4 | . . . . 1 . . . 1 2 Critical Kills 1 | . . . . . . . . . 1 Critical Parts Destroyed . | . . . . . . . . . . Critical Strikes 1 | . . . . . . . . . 1 Smash 1 | . . . . . . . . . 1 Melee Attacks 10 | . . . . . . . . . 10 Impact 9 | . . . . . . . . . 9 Slashing 1 | . . . . . . . . . 1 Piercing . | . . . . . . . . . . Sneak Attacks . | . . . . . . . . . . Combat Hostiles . | . . . . . . . . . . Follow-up Attacks . | . . . . . . . . . . Damage Inflicted 185 | . . 1 . 31 . . . 27 126 Guns . | . . . . . . . . . . Cannons . | . . . . . . . . . . Explosions . | . . . . . . . . . . Melee 115 | . . . . . . . . . 115 Ramming 70 | . . 1 . 31 . . . 27 11 Kinetic . | . . . . . . . . . . Thermal . | . . . . . . . . . . Explosive . | . . . . . . . . . . Electromagnetic . | . . . . . . . . . . Impact 115 | . . . . . . . . . 115 Slashing . | . . . . . . . . . . Piercing . | . . . . . . . . . . Highest Corruption 13 | . . . . . . . 7 13 13 Average Corruption 10 | . . . . . . . 7 8 13 Corruption Purged . | . . . . . . . . . . Corruption Blocked . | . . . . . . . . . . Effects 23 | . . . . . . . 1 11 11 Message Errors 3 | . . . . . . . . 2 1 Matter Fused 6 | . . . . . . . 1 3 2 Heat Flow Errors 2 | . . . . . . . . 1 1 Energy Discharges 3 | . . . . . . . . 3 . Parts Rejected 1 | . . . . . . . . . 1 Data Loss (minor) 1 | . . . . . . . . . 1 Misdirections 7 | . . . . . . . . 2 5 Overload Shots . | . . . . . . . . . . Overflow Damage . | . . . . . . . . . . Projectiles . | . . . . . . . . . . Explosions . | . . . . . . . . . . Melee . | . . . . . . . . . . Knockbacks 1 | . . . . . . . . 1 . Impact 1 | . . . . . . . . 1 . Kinetic . | . . . . . . . . . . Secondary . | . . . . . . . . . . Self-Inflicted Damage 32 | . . . . 14 . . . 13 5 Shots . | . . . . . . . . . . Rammed 15 | . . 2 . 7 . . . 4 2 Targets Rammed 15 | . . 2 . 7 . . . 4 2 Kicked . | . . . . . . . . . . Crushed . | . . . . . . . . . . Highest Temperature 241 | . . . . . 9 . . 241 198 Average Temperature 111 | . . . . . 9 . . 121 118 Received Heat Transfer 430 | . . 135 27 12 127 . . 129 . Siege Activations . | . . . . . . . . . . Robots Corrupted . | . . . . . . . . . . Combat Hostiles . | . . . . . . . . . . Parts Fried . | . . . . . . . . . . Impact Corruptions . | . . . . . . . . . . Robots Melted . | . . . . . . . . . . Combat Hostiles . | . . . . . . . . . . Parts Melted . | . . . . . . . . . . Heat Transferred . | . . . . . . . . . . Parts Sabotaged . | . . . . . . . . . . Parts Stolen . | . . . . . . . . . . Parts Stripped . | . . . . . . . . . . Power Chain Reactions . | . . . . . . . . . . Alert | -11 -10 -9 -8 -7 -6 -5 -5 -5 -5 ------- Run | Yrd Mat Mat Mat Fac Fac Fac Was Fac Upp Peak Influence 105 | . 20 38 20 54 48 38 43 105 . Initial 30 | . . 8 15 9 18 23 13 30 . Average 29 | . 2 22 15 30 42 35 22 33 . Maximum Alert Level . | . . . . . . . . . . Low Security (%) 100 | 100 100 100 100 100 100 100 100 100 . Level 1 . | . . . . . . . . . . Level 2 . | . . . . . . . . . . Level 3 . | . . . . . . . . . . Level 4 . | . . . . . . . . . . Level 5 . | . . . . . . . . . . High Security . | . . . . . . . . . . Max Security . | . . . . . . . . . . Squads Dispatched 3 | . . 1 . 1 1 . . . . Investigation 2 | . . 1 . . 1 . . . . Extermination . | . . . . . . . . . . Reinforcement 1 | . . . . 1 . . . . . Assault . | . . . . . . . . . . Garrison . | . . . . . . . . . . Intercept . | . . . . . . . . . . Searches Triggered . | . . . . . . . . . . Construction Impeded 1 | . . . . 1 . . . . . Haulers Reinforced . | . . . . . . . . . . Active Scanning Responses . | . . . . . . . . . . Cargo Convoy Interrupts . | . . . . . . . . . . Stealth | -11 -10 -9 -8 -7 -6 -5 -5 -5 -5 --------- Run | Yrd Mat Mat Mat Fac Fac Fac Was Fac Upp Distress Signals 1 | . . 1 . . . . . . . Communications Jammed . | . . . . . . . . . . Distress Signals . | . . . . . . . . . . Times Spotted 72 | . 5 8 5 7 8 1 6 16 16 Peak Tracking Total 11 | . 5 8 6 5 8 1 6 11 8 Tactical Retreats 9 | . . . . 1 . . . 4 4 Traps | -11 -10 -9 -8 -7 -6 -5 -5 -5 -5 ------- Run | Yrd Mat Mat Mat Fac Fac Fac Was Fac Upp Traps Triggered 4 | . . . . 1 1 1 . 1 . Indirectly . | . . . . . . . . . . Trap Hack Attempts . | . . . . . . . . . . Triggered . | . . . . . . . . . . Disarmed . | . . . . . . . . . . Reprogrammed . | . . . . . . . . . . Reused . | . . . . . . . . . . Traps Extracted . | . . . . . . . . . . Installed . | . . . . . . . . . . Triggered . | . . . . . . . . . . Machines | -11 -10 -9 -8 -7 -6 -5 -5 -5 -5 ---------- Run | Yrd Mat Mat Mat Fac Fac Fac Was Fac Upp Machines Disabled . | . . . . . . . . . . Max in Single Turn . | . . . . . . . . . . Machines Repaired . | . . . . . . . . . . Machines Dismantled . | . . . . . . . . . . Machines Sabotaged . | . . . . . . . . . . Overloaded Fab Kills . | . . . . . . . . . . Hacking | -11 -10 -9 -8 -7 -6 -5 -5 -5 -5 --------- Run | Yrd Mat Mat Mat Fac Fac Fac Was Fac Upp Machines Accessed 7 | . 1 1 . . 5 . . . . Terminals 7 | . 1 1 . . 5 . . . . Fabricators . | . . . . . . . . . . Repair Stations . | . . . . . . . . . . Recycling Units . | . . . . . . . . . . Scanalyzers . | . . . . . . . . . . Garrison Access . | . . . . . . . . . . Total Hacks 15 | . 2 4 . . 9 . . . . Successful 3 | . 1 . . . 2 . . . . Failed 12 | . 1 4 . . 7 . . . . Catastrophic 2 | . . 1 . . 1 . . . . Database Lockouts . | . . . . . . . . . . Manual 3 | . . . . . 3 . . . . Terminals 15 | . 2 4 . . 9 . . . . Fabricators . | . . . . . . . . . . Repair Stations . | . . . . . . . . . . Recycling Units . | . . . . . . . . . . Scanalyzers . | . . . . . . . . . . Garrison Access . | . . . . . . . . . . Terminal Hacks 3 | . 1 . . . 2 . . . . Record 1 | . . . . . 1 . . . . Open DSF 1 | . . . . . 1 . . . . Zone Layout 1 | . 1 . . . . . . . . Fabricator Hacks . | . . . . . . . . . . Repair Station Hacks . | . . . . . . . . . . Recycling Unit Hacks . | . . . . . . . . . . Scanalyzer . | . . . . . . . . . . Garrison Access Hacks . | . . . . . . . . . . Unauthorized Hacks . | . . . . . . . . . . Terminals . | . . . . . . . . . . Fabricators . | . . . . . . . . . . Repair Stations . | . . . . . . . . . . Recycling Units . | . . . . . . . . . . Scanalyzers . | . . . . . . . . . . Garrison Access . | . . . . . . . . . . Data Cores Recovered . | . . . . . . . . . . Used . | . . . . . . . . . . Hacking Detections 5 | . . 1 . . 4 . . . . Full Trace Events 1 | . . 1 . . . . . . . Feedback Events . | . . . . . . . . . . Feedback Blocked . | . . . . . . . . . . Robot Schematics Acquired . | . . . . . . . . . . Robots Built . | . . . . . . . . . . Authchips . | . . . . . . . . . . Time . | . . . . . . . . . . Total Robot Build Rating . | . . . . . . . . . . Part Schematics Acquired . | . . . . . . . . . . Parts Built . | . . . . . . . . . . Authchips . | . . . . . . . . . . Time . | . . . . . . . . . . Total Part Build Rating . | . . . . . . . . . . Parts Repaired . | . . . . . . . . . . Time . | . . . . . . . . . . Parts Recycled . | . . . . . . . . . . Recycled Matter . | . . . . . . . . . . Retrieved Matter . | . . . . . . . . . . Retrieved Components . | . . . . . . . . . . Parts Scanalyzed . | . . . . . . . . . . Part Schematics Acquired . | . . . . . . . . . . Parts Damaged . | . . . . . . . . . . Bothacking | -11 -10 -9 -8 -7 -6 -5 -5 -5 -5 ------------ Run | Yrd Mat Mat Mat Fac Fac Fac Was Fac Upp Used RIF Installer . | . . . . . . . . . . Robots Hacked . | . . . . . . . . . . Non-combat . | . . . . . . . . . . Combat . | . . . . . . . . . . Robot Hacks Applied . | . . . . . . . . . . Relay Couplers Released . | . . . . . . . . . . Fabnet Peak Effective % . | . . . . . . . . . . Robots Rewired . | . . . . . . . . . . Allies Hacked . | . . . . . . . . . . Hacks Repelled . | . . . . . . . . . . Allies | -11 -10 -9 -8 -7 -6 -5 -5 -5 -5 -------- Run | Yrd Mat Mat Mat Fac Fac Fac Was Fac Upp Total Allies . | . . . . . . . . . . Largest Group . | . . . . . . . . . . Highest-Rated Group . | . . . . . . . . . . Highest-Rated Ally . | . . . . . . . . . . Total Orders . | . . . . . . . . . . Ally Attacks . | . . . . . . . . . . Total Damage . | . . . . . . . . . . Kills . | . . . . . . . . . . Allies Corrupted . | . . . . . . . . . . Allies Melted . | . . . . . . . . . . Intel | -11 -10 -9 -8 -7 -6 -5 -5 -5 -5 ------- Run | Yrd Mat Mat Mat Fac Fac Fac Was Fac Upp Robot Analysis Total . | . . . . . . . . . . Derelict Logs Recovered . | . . . . . . . . . . Drone Launches . | . . . . . . . . . . Drone Recoveries . | . . . . . . . . . . Exploration | -11 -10 -9 -8 -7 -6 -5 -5 -5 -5 ------------- Run | Yrd Mat Mat Mat Fac Fac Fac Was Fac Upp Turns Passed 993 | 16 39 89 33 88 104 91 34 303 196 Spaces Moved 1785 | 23 78 152 64 141 196 178 66 560 327 Core 1779 | 23 78 152 64 135 196 178 66 560 327 Treads . | . . . . . . . . . . Legs 6 | . . . . 6 . . . . . Wheels . | . . . . . . . . . . Hover . | . . . . . . . . . . Flight . | . . . . . . . . . . Fastest Speed 50 | 50 50 50 50 50 50 50 50 50 50 Average Speed 50 | 50 50 50 50 53 50 50 50 50 50 Slowest Speed 130 | 50 50 50 50 130 50 50 50 50 100 Overloaded Moves . | . . . . . . . . . . Propulsion Burnouts . | . . . . . . . . . . Robots Hopped . | . . . . . . . . . . Cave-ins Triggered . | . . . . . . . . . . Exploration Rate (%) 22 | 3 18 20 19 8 7 8 72 20 45 Regions Visited 9 Branch Regions 1 Pre-discovered Areas . | . . . . . . . . . . Known Exits Taken . | . . . . . . . . . . Unknown Exits Taken 7 | 1 1 1 1 1 1 . . 1 . Scrap Searched . | . . . . . . . . . . Spaces Dug 2 | . . . . . . . . . 2 Terrain Destroyed 2 | . . . . . . . . . 2 Melee 2 | . . . . . . . . . 2 Projectile . | . . . . . . . . . . AOE . | . . . . . . . . . . Terrain Rammed . | . . . . . . . . . . Walls Destroyed . | . . . . . . . . . . Machines Disabled . | . . . . . . . . . . Actions | -11 -10 -9 -8 -7 -6 -5 -5 -5 -5 --------- Run | Yrd Mat Mat Mat Fac Fac Fac Was Fac Upp Total 1850 | 25 77 163 64 153 199 179 66 581 343 Wait . | . . . . . . . . . . Move 1778 | 22 77 151 63 141 195 178 65 559 327 Hop . | . . . . . . . . . . Pick Up 8 | . . 4 1 1 . . 1 1 . Fast Attach 15 | 3 . 4 . 1 4 1 . 2 . Attach 7 | . . . . 4 . . . . 3 Detach 1 | . . . . . . . . . 1 Swap . | . . . . . . . . . . Drop 2 | . . 2 . . . . . . . Fire . | . . . . . . . . . . Melee 10 | . . . . . . . . . 10 Ram 14 | . . 2 . 6 . . . 4 2 Kick . | . . . . . . . . . . Crush . | . . . . . . . . . . Escape Stasis 15 | . . . . . . . . 15 . Rewire . | . . . . . . . . . . Trap . | . . . . . . . . . . Miscellaneous . | . . . . . . . . . . Route ------- -11/Scrapyard -10/Materials -9/Materials -8/Materials -7/Factory -6/Factory -5/Factory -5/Waste -5/Factory -5/Upper Caves History --------- Turn | Location | Event 11 | -11/Scrapyard | Discovered new exit (range 12) 17 | -11/Scrapyard | Entered Materials 51 | -10/Materials | Discovered new exit (range 11) 56 | -10/Materials | Entered another Materials area 56 | -9/Materials | Evolved 2 slots: Propulsion x2 138 | -9/Materials | Discovered new exit (range 15) 145 | -9/Materials | Entered another Materials area 145 | -8/Materials | Evolved 2 slots: Propulsion x2 172 | -8/Materials | Discovered new exit (range 13) 178 | -8/Materials | Entered Factory 178 | -7/Factory | Evolved 2 slots: Propulsion x2 259 | -7/Factory | Discovered new exit (range 16) 266 | -7/Factory | Entered another Factory area 266 | -6/Factory | Evolved 2 slots: Propulsion x2 290 | -6/Factory | Lost 3 parts (3n) 312 | -6/Factory | Build established: Mutant 364 | -6/Factory | Discovered new exit (range 13) 370 | -6/Factory | Entered another Factory area 370 | -5/Factory | Evolved 2 slots: Propulsion x1, Utility x1 461 | -5/Factory | Sucked down chute 461 | -5/Factory | Entered Waste 476 | -5/Waste | EMP discharged 478 | -5/Waste | Spotted C-40 Crusher 478 | -5/Waste | Spotted C-40 Crusher 482 | -5/Waste | Spotted C-40 Crusher 484 | -5/Waste | Spotted C-40 Crusher 486 | -5/Waste | Spotted C-40 Crusher 487 | -5/Waste | Spotted C-40 Crusher 490 | -5/Waste | Discovered new exit (range 10) 495 | -5/Waste | Entered Factory 709 | -5/Factory | Lost 7 parts (7n) 711 | -5/Factory | System corruption reached 10% 776 | -5/Factory | Lost 4 parts (2n2u) 791 | -5/Factory | Discovered new exit (range 16) 798 | -5/Factory | Entered Upper Caves 873 | -5/Upper Caves | Core integrity fell below 50% 931 | -5/Upper Caves | Core integrity fell below 20% 994 | -5/Upper Caves | Destroyed by S-27 Virus with Autogun Last Messages --------------- LOCATION=UNKNOWN GOAL=ESCAPE 00799_ S-27 Virus destroyed. 00806_ System corrupted: Broken Arm. Medium Treads rejected. 00824_ System corrupted: Matter fused (-9). 00854_ System corrupted: Component data lost. 00871_ System corrupted: Heat flow error (+238). 00874_ Acquired 4 matter. 00879_ 96-YRS(k) breaks down the debris. 00887_ 7ZQCVWHQM&JMTPQSQTIV7GY|LNLCAVXEH57 00894_ Mining Claw destroyed. 00907_ System corrupted: Matter fused (-6). 00909_ Acquired 20 matter. 00971_ Slammed into S-27 Virus. 00972_ S-27 Virus destroyed. 00973_ Acquired 30 matter. 00984_ S-27 Virus suffers critical hit (Smash). 00984_ S-27 Virus destroyed. 00985_ VTOL Module fries itself beyond repair. 00986_ Lgt. Nuclear Core fries itself beyond repair. Map ----- +----------------------------------------------------+ | ????????????????????????????## #????? ?## | | ???????????????????########## #????? #?# | | ???????????????????# ## ###??? ### | | ???????????????????# #??? # | | ???????????????????# ## ##?? ### | | ??????????????????# ### ### #??? | | ?????????????????# #### #???? | | ?????????????????# #### ## #???? | | ?????????????????## #?# #### #?### | | ??????????????????######?# ### ##??## #### | | ?????????????????????????# ??### ##???## ### # | | ?????????????????????????# ????# #????# ## #? | | ?????????????????????????#?????# #????# #?? | | ?????????????????##????????????# #????# ### | | ?????????????????# ##??????????# #????## | | ?????????????????# #######???# #?#???### ## | | ?????????????????# # ##??# #?# ???# ### | | ?????????????????# # ##?# #?# ## ### | | ?????????????????# ### #?# ## | | ?????????????????#### # # # ## ### # | | ????????????????????## = ## ## | | ?????????????????????# # # # ## ### #?## | | ?????????????????????#[ # ##### ###??### | | ?????????????????????###[### #?#????????## | | ??????????????????????#ss#### ###???????????# | | ??????????????????????# =@#### ##?????????????# | | ??????????????????????## #?# ##????????????? | | ???????????????????????## ####????????????? | | ????????????????????????#####???????????????#### | | ???????????????????????????????????????????????### | | ?????????????????????????????????????????????????? | | ?????????????????????????????????????????????????? | | ?????????????????????????????????????????????????? | | ?????????????????????????????????????????????????? | | ?????????????????????????????????????????????????? | | ?????????????????????????????????????????????????? | | ?????????????????????????????????????????????????? | | ?????????????????????????????????????????????????? | | ?????????????????????????????????????????????????? | | ?????????????????????????????????????????????????? | | ?????????????????????????????????????????????????? | | ?????????????????????????????????????????????????? | | ?????????????????????????????????????????????????? | | ?????????????????????????????????????????????????? | | ?????????????????????????????????????????????????? | | | | | | | | | | | +----------------------------------------------------+ Best States ------------- Heat Dissipation 40 Energy Generation 5 Energy Capacity 100 Matter Stores 152 Matter Capacity 300 Sight Range 16 Robot Scan Range 15 Terrain Scan Density 10 Evasion (%) 58 Recoil Reduction 1 Offensive Hacking 10 Item Schematics ----------------- None Robot Schematics ------------------ None Fabricated ------------ Nothing Alien Tech Used ----------------- None Achievements -------------- None Challenges ------------ None Game ------ Seed NovaGhostTreads Manual? 0 Play Time 00:28:54 Cumulative 81.6 hours Start 2024.03.20 @ 03:47:56 End 2024.03.20 @ 04:14:38 Sessions 1 Manual Loads 0 Difficulty Rogue Special Mode None Game No. 43 Rogue 43 Adventurer 0 Explorer 0 Win Type - Total 3 Types 3/0/0/0/0/0/0/0/0 Lore% 47 Gallery% 54 Achievement% 43 Wizard Run 0 Options --------- Layout 0 ASCII 1 Keyboard 0 Movement Mouse Keybinds 0 Fullscreen 1 Font 20/X11 Map View 66x50 Zoom Use 0% Tactical HUD 1 Map Filters NONE Filters NONE Steam 1 RUN: cf0a12d7-bd8d-448e-bbd5-e7888ffb8a8b